[Event "Istanbul Open 2019"]
[Site "Istanbul"]
[Date "2019.08.27"]
[Round "2.3"]
[White "Ozsakallioglu, Okan"]
[Black "Akbas, Umut Ata"]
[Result "1-0"]
[ECO "E63"]
[WhiteElo "2324"]
[BlackElo "1986"]
[Annotator "NA"]
[PlyCount "85"]
[EventDate "2019.08.26"]
[EventType "swiss"]
[EventCountry "TUR"]
[SourceTitle "playchess.com"]
[Source "ChessBase"]
[SourceQuality "1"]
[TimeControl "5400+30"]

1. d4 {[%emt 0:00:30]} Nf6 {[%emt 0:00:30]} 2. c4 {[%emt 0:00:30]} g6 {[%emt 0:00:00]} 3. Nf3 {[%emt 0:00:30]} Bg7 {[%emt 0:00:00]} 4. g3 {[%emt 0:00:00]} O-O {[%emt 0:00:30]} 5. Bg2 {[%emt 0:00:00]} d6 {[%emt 0:00:00]} 6. O-O {[%emt 0:00:00]} a6 {[%emt 0:01:00]} 7. Nc3 {[%emt 0:02:00]} Nc6 {[%emt 0:00:00]} 8. Bg5 {[%emt 0:03:30]} h6 {[%emt 0:02:00]} 9. Bf4 {[%emt 0:01:30]} Bf5 {[%emt 0:05:30]} 10. Rc1 {[%emt 0:11:30]} Ne4 {[%emt 0:06:30]} 11. Nxe4 {[%emt 0:02:30]} Bxe4 $14 {[%emt 0:00:30]} 12. d5 {[%emt 0:00:30]} Nb8 {[%emt 0:09:30]} 13. Qd2 {[%emt 0:02:30]} Kh7 {[%emt 0:01:30]} 14. h4 {[%emt 0:00:30]} Nd7 {[%emt 0:01:30]} 15. h5 {[%emt 0:00:00]} Nf6 {[%emt 0:00:30]} 16. hxg6+ {[%emt 0:00:00]} Bxg6 {[%emt 0:02:30]} 17. Nh4 {[%emt 0:00:30]} Qd7 {[%emt 0:01:30]} 18. Rfe1 {[%emt 0:01:30]} Ne4 {[%emt 0:10:30]} 19. Qc2 {[%emt 0:03:30]} Ng5 {[%emt 0:01:30]} 20. Nxg6 {[%emt 0:15:30]} fxg6 {[%emt 0:00:30]} 21. Bxg5 {[%emt 0:00:00]} hxg5 {[%emt 0:00:30]} 22. Be4 {[%emt 0:00:00]} Qh3 {[%emt 0:09:30]} 23. Bxg6+ {[%emt 0:02:30]} Kh6 {[%emt 0:02:30]} 24. Be4 {[%emt 0:01:30]} Rxf2 {[%emt 0:01:30]} 25. Kxf2 {[%emt 0:00:30]} Bd4+ {[%emt 0:00:30]} 26. e3 {[%emt 0:00:30]} Qh2+ {[%emt 0:01:30]} 27. Bg2 {[%emt 0:00:30]} Rf8+ {[%emt 0:00:30]} 28. Ke2 {[%emt 0:00:30]} Qxg2+ {[%emt 0:00:00]} 29. Kd3 {[%emt 0:00:00]} Rf2 {[%emt 0:02:00]} 30. Re2 {[%emt 0:01:00]} Bxe3 {[%emt 0:00:30]} 31. Rxf2 {[%emt 0:01:30]} Bxf2 {[%emt 0:01:30]} 32. Qe2 {[%emt 0:00:30]} Qxg3+ {[%emt 0:01:30]} 33. Kc2 {[%emt 0:00:30]} Qe3 {[%emt 0:07:30]} 34. Rh1+ {[%emt 0:00:30]} Kg7 {[%emt 0:00:30]} 35. Qxe3 {[%emt 0:01:30]} Bxe3 {[%emt 0:00:30]} 36. Kd3 {[%emt 0:01:30]} Bf4 {[%emt 0:07:30]} 37. Ke4 {[%emt 0:00:30]} Be5 {[%emt 0:00:30]} 38. Kf5 {[%emt 0:00:30]} Bf6 {[%emt 0:00:30]} 39. b4 {[%emt 0:00:30]} b6 {[%emt 0:00:30]} 40. Rh3 {[%emt 0:00:30]} a5 {[%emt 0:00:30]} 41. bxa5 {[%emt 0:00:30]} bxa5 {[%emt 0:00:30]} 42. Ra3 {[%emt 0:00:30]} Kh6 {[%emt 0:00:30]} 43. Ke4 {[%emt 0:00:30]} 1-0

[Event "Istanbul Open 2019"]
[Site "Istanbul"]
[Date "2019.08.27"]
[Round "2.6"]
[White "Akin, Yagiz Cinar"]
[Black "Citak, Selim"]
[Result "0-1"]
[ECO "D02"]
[WhiteElo "1953"]
[BlackElo "2263"]
[Annotator "ChessBase"]
[PlyCount "102"]
[EventDate "2019.08.26"]
[EventType "swiss"]
[EventCountry "TUR"]
[SourceTitle "playchess.com"]
[Source "ChessBase"]
[SourceQuality "1"]
[TimeControl "5400+30"]

1. Nf3 {[%emt 0:00:30]} Nf6 {[%emt 0:01:30]} 2. g3 {[%emt 0:00:00]} d5 {[%emt 0:00:00]} 3. Bg2 {[%emt 0:02:00]} Nc6 {[%emt 0:00:00]} 4. d4 {[%emt 0:00:30]} Bf5 {[%emt 0:00:30]} 5. O-O {[%emt 0:02:30]} e6 {[%emt 0:00:00]} 6. Bf4 {[%emt 0:00:30]} Bd6 {[%emt 0:02:00]} 7. Bg5 {[%emt 0:04:30]} h6 {[%emt 0:01:30]} 8. Bxf6 {[%emt 0:03:30]} Qxf6 {[%emt 0:00:00]} 9. c4 {[%emt 0:02:30]} O-O {[%emt 0:08:00]} 10. Nc3 {[%emt 0:01:30]} dxc4 {[%emt 0:08:30]} 11. h3 {[%emt 0:01:30]} e5 {[%emt 0:05:30]} 12. d5 {[%emt 0:10:30]} Nd4 {[%emt 0:02:30]} 13. Nd2 {[%emt 0:02:30]} Bc2 {[%emt 0:04:30]} 14. Qc1 {[%emt 0:13:30]} Bb4 {[%emt 0:03:30]} 15. e3 {[%emt 0:01:30]} Bxc3 {[%emt 0:01:30]} 16. exd4 {[%emt 0:00:30]} Bxd2 {[%emt 0:00:30]} 17. Qxc2 {[%emt 0:00:00]} Ba5 {[%emt 0:01:30]} 18. dxe5 {[%emt 0:03:00]} Qxe5 {[%emt 0:00:00]} 19. Qxc4 {[%emt 0:00:30]} Qxb2 {[%emt 0:00:00]} 20. Rab1 {[%emt 0:00:30]} Qf6 {[%emt 0:03:30]} 21. Rxb7 {[%emt 0:04:30]} Bb6 {[%emt 0:00:00]} 22. Qc6 {[%emt 0:02:30]} Qd4 {[%emt 0:03:00]} 23. d6 {[%emt 0:05:30]} Qxd6 {[%emt 0:04:30]} 24. Qxd6 {[%emt 0:00:30]} cxd6 {[%emt 0:00:30]} 25. Bd5 {[%emt 0:00:30]} Rae8 {[%emt 0:00:30]} 26. Bc4 {[%emt 0:07:30]} Re4 {[%emt 0:02:30]} 27. Bb3 {[%emt 0:06:30]} Re2 {[%emt 0:00:30]} 28. Kg2 {[%emt 0:05:16]} g5 {[%emt 0:00:00]} 29. g4 {[%emt 0:01:37]} Kg7 {[%emt 0:00:00]} 30. Kg3 {[%emt 0:00:30]} Kg6 {[%emt 0:00:30]} 31. Rd1 {[%emt 0:03:33]} Bc5 {[%emt 0:02:30]} 32. Bc4 {[%emt 0:01:22]} Re5 {[%emt 0:05:30]} 33. a4 {[%emt 0:04:44]} Kf6 {[%emt 0:01:30]} 34. f3 {[%emt 0:01:53]} Re7 {[%emt 0:00:30]} 35. Rxe7 {[%emt 0:03:14]} Kxe7 {[%emt 0:00:30]} 36. f4 {[%emt 0:00:01]} f5 {[%emt 0:03:30]} 37. fxg5 {[%emt 0:01:53]} hxg5 {[%emt 0:00:30]} 38. Rd5 {[%emt 0:02:55]} f4+ {[%emt 0:05:30]} 39. Kf3 {[%emt 0:00:04]} Rh8 {[%emt 0:00:00]} 40. Kg2 {[%emt 0:02:13]} Be3 {[%emt 0:01:00]} 41. Be2 {[%emt 0:01:01]} Rc8 {[%emt 0:03:30]} 42. Kf3 {[%emt 0:00:47]} Rc3 {[%emt 0:00:30]} 43. Ke4 {[%emt 0:00:12]} Ra3 {[%emt 0:02:30]} 44. a5 {[%emt 0:00:26]} Bc5 {[%emt 0:04:30]} 45. Bd3 {[%emt 0:00:08]} Ke6 {[%emt 0:01:30]} 46. Rxg5 {[%emt 0:01:09]} d5+ {[%emt 0:00:00]} 47. Kxf4 {[%emt 0:00:13]} Rxd3 {[%emt 0:00:00]} 48. Rh5 {[%emt 0:00:00]} Bd6+ {[%emt 0:02:30]} 49. Kg5 {[%emt 0:00:00]} d4 {[%emt 0:00:30]} 50. Kh6 {[%emt 0:00:01]} Rg3 {[%emt 0:00:30]} 51. g5 {[%emt 0:00:22]} Bf4 {[%emt 0:01:30]} 0-1

[Event "Istanbul Open 2019"]
[Site "Istanbul"]
[Date "2019.08.27"]
[Round "2.7"]
[White "Nuri, Murad"]
[Black "Rahimli, Ilkin"]
[Result "1/2-1/2"]
[ECO "B31"]
[WhiteElo "2291"]
[BlackElo "1992"]
[Annotator "RC"]
[PlyCount "90"]
[EventDate "2019.08.26"]
[EventType "swiss"]
[EventCountry "TUR"]
[SourceTitle "playchess.com"]
[Source "ChessBase"]
[SourceQuality "1"]
[TimeControl "5400+30"]

1. e4 {[%emt 0:01:30]} c5 {[%emt 0:00:30]} 2. Nf3 {[%emt 0:00:30]} d6 {[%emt 0:00:00]} 3. Bb5+ {[%emt 0:00:30]} Nc6 {[%emt 0:00:00]} 4. O-O {[%emt 0:00:30]} Bd7 {[%emt 0:01:30]} 5. Re1 {[%emt 0:01:30]} g6 {[%emt 0:08:30]} 6. c3 {[%emt 0:02:30]} Bg7 {[%emt 0:00:30]} 7. h3 {[%emt 0:00:30]} Nf6 {[%emt 0:20:30]} 8. d4 {[%emt 0:01:30]} cxd4 {[%emt 0:03:30]} 9. cxd4 {[%emt 0:00:00]} O-O {[%emt 0:00:30]} 10. Nc3 {[%emt 0:02:00]} Ne8 {[%emt 0:06:30]} 11. Bg5 {[%emt 0:12:30]} Nc7 {[%emt 0:04:30]} 12. Bf1 {[%emt 0:20:30]} h6 {[%emt 0:06:30]} 13. Be3 {[%emt 0:01:30]} e6 {[%emt 0:05:30]} 14. Qd2 {[%emt 0:14:30]} Kh7 {[%emt 0:00:30]} 15. Rad1 {[%emt 0:01:30]} Ne7 {[%emt 0:05:30]} 16. e5 {[%emt 0:14:30]} d5 {[%emt 0:02:30]} 17. g4 {[%emt 0:02:30]} Nc6 {[%emt 0:10:30]} 18. Bf4 {[%emt 0:02:49]} f5 {[%emt 0:06:03]} 19. g5 {[%emt 0:00:16]} h5 {[%emt 0:00:41]} 20. Rc1 {[%emt 0:00:22]} Rf7 {[%emt 0:00:13]} 21. Ne2 {[%emt 0:03:47]} Bf8 {[%emt 0:01:01]} 22. a3 {[%emt 0:00:01]} Ne8 {[%emt 0:00:35]} 23. b4 {[%emt 0:09:48]} a5 {[%emt 0:00:30]} 24. b5 {[%emt 0:00:05]} Na7 {[%emt 0:00:23]} 25. a4 {[%emt 0:00:03]} Bb4 {[%emt 0:00:00]} 26. Nc3 {[%emt 0:00:03]} Nc8 {[%emt 0:00:12]} 27. Qa2 {[%emt 0:02:41]} Nb6 {[%emt 0:01:17]} 28. Bd2 {[%emt 0:00:08]} Rc8 {[%emt 0:00:40]} 29. h4 {[%emt 0:04:42]} Qe7 {[%emt 0:03:26]} 30. Rc2 {[%emt 0:01:14]} Ng7 {[%emt 0:01:30]} 31. Rec1 {[%emt 0:00:27]} Ba3 {[%emt 0:02:55]} 32. Ra1 {[%emt 0:00:18]} Bb4 {[%emt 0:00:08]} 33. Rac1 {[%emt 0:00:01]} Rff8 {[%emt 0:00:59]} 34. Qb3 {[%emt 0:01:01]} f4 {[%emt 0:01:42]} 35. Bd3 {[%emt 0:01:05]} Nc4 {[%emt 0:00:15]} 36. Be1 {[%emt 0:00:00]} Nf5 {[%emt 0:00:49]} 37. Bxf5 {[%emt 0:00:15]} Rxf5 {[%emt 0:00:16]} 38. Na2 {[%emt 0:00:06]} Ba3 {[%emt 0:00:36]} 39. Rd1 {[%emt 0:01:13]} Rff8 {[%emt 0:00:04]} 40. Nc1 {[%emt 0:00:23]} Bxc1 {[%emt 0:02:44]} 41. Rdxc1 {[%emt 0:00:43]} Qf7 {[%emt 0:00:03]} 42. Qd3 {[%emt 0:00:07]} Nb2 {[%emt 0:00:18]} 43. Qa3 {[%emt 0:00:24]} Nc4 {[%emt 0:01:45]} 44. Qd3 {[%emt 0:00:04]} Nb2 {[%emt 0:00:00]} 45. Qa3 {[%emt 0:01:18]} Nc4 {[%emt 0:00:39]} 1/2-1/2

[Event "Istanbul Open 2019"]
[Site "Istanbul"]
[Date "2019.08.27"]
[Round "2.8"]
[White "Ozdemir, Serhan Berat"]
[Black "Darban, Morteza"]
[Result "1/2-1/2"]
[ECO "B04"]
[WhiteElo "1978"]
[BlackElo "2280"]
[Annotator "NA"]
[PlyCount "68"]
[EventDate "2019.08.26"]
[EventType "swiss"]
[EventCountry "TUR"]
[SourceTitle "playchess.com"]
[Source "ChessBase"]
[SourceQuality "1"]
[TimeControl "5400+30"]

1. e4 {[%emt 0:00:30]} Nf6 {[%emt 0:02:30]} 2. e5 {[%emt 0:00:00]} Nd5 {[%emt 0:00:00]} 3. d4 {[%emt 0:00:00]} d6 {[%emt 0:00:00]} 4. Nf3 {[%emt 0:00:30]} g6 {[%emt 0:00:30]} 5. Bc4 {[%emt 0:00:00]} c6 {[%emt 0:00:00]} 6. O-O {[%emt 0:02:00]} Bg7 {[%emt 0:00:00]} 7. h3 {[%emt 0:00:30]} O-O {[%emt 0:00:00]} 8. Re1 {[%emt 0:01:30]} a5 {[%emt 0:03:00]} 9. a4 {[%emt 0:04:30]} Na6 {[%emt 0:02:30]} 10. Nc3 $14 {[%emt 0:05:30]} Nxc3 {[%emt 0:35:30]} 11. bxc3 {[%emt 0:00:30]} d5 {[%emt 0:00:00]} 12. Bf1 {[%emt 0:01:30]} Nc7 {[%emt 0:12:00]} 13. Be3 {[%emt 0:00:30]} b6 {[%emt 0:04:30]} 14. Qd2 {[%emt 0:00:30]} Ba6 {[%emt 0:01:30]} 15. Nh2 {[%emt 0:00:30]} Bxf1 {[%emt 0:01:30]} 16. Rxf1 {[%emt 0:00:30]} f6 {[%emt 0:03:30]} 17. exf6 {[%emt 0:06:30]} exf6 {[%emt 0:00:00]} 18. Bh6 {[%emt 0:00:30]} Ne8 {[%emt 0:02:00]} 19. Bxg7 {[%emt 0:01:30]} Kxg7 {[%emt 0:00:00]} 20. Ng4 {[%emt 0:01:30]} Nd6 {[%emt 0:00:00]} 21. Rfe1 {[%emt 0:00:30]} Qd7 {[%emt 0:00:30]} 22. Re2 {[%emt 0:01:30]} g5 {[%emt 0:10:30]} 23. Rae1 {[%emt 0:05:30]} Rae8 {[%emt 0:00:30]} 24. Qd3 {[%emt 0:04:30]} Rxe2 {[%emt 0:07:42]} 25. Rxe2 {[%emt 0:01:30]} h5 {[%emt 0:00:13]} 26. Ne3 {[%emt 0:00:00]} Re8 {[%emt 0:08:12]} 27. Nf5+ {[%emt 0:01:00]} Nxf5 {[%emt 0:00:40]} 28. Rxe8 {[%emt 0:00:30]} Qxe8 {[%emt 0:00:30]} 29. Qxf5 {[%emt 0:00:00]} h4 {[%emt 0:00:00]} 30. Kf1 {[%emt 0:01:00]} Qe4 {[%emt 0:05:45]} 31. Qd7+ {[%emt 0:06:30]} Kg6 {[%emt 0:00:03]} 32. Qd8 {[%emt 0:01:30]} Qxc2 {[%emt 0:01:47]} 33. Qg8+ {[%emt 0:00:30]} Kh6 {[%emt 0:00:30]} 34. Qh8+ {[%emt 0:00:30]} Kg6 {[%emt 0:00:00]} 1/2-1/2

[Event "Istanbul Open 2019"]
[Site "Istanbul"]
[Date "2019.08.27"]
[Round "2.10"]
[White "Tirak, Mert"]
[Black "Aliakbarov, Anar"]
[Result "0-1"]
[ECO "C44"]
[WhiteElo "1953"]
[BlackElo "2265"]
[Annotator "ChessBase"]
[PlyCount "84"]
[EventDate "2019.08.26"]
[EventType "swiss"]
[EventCountry "TUR"]
[SourceTitle "playchess.com"]
[Source "ChessBase"]
[SourceQuality "1"]
[TimeControl "5400+30"]

1. e4 {[%emt 0:00:30]} e5 {[%emt 0:00:30]} 2. Nf3 {[%emt 0:01:30]} Nc6 {[%emt 0:00:30]} 3. c3 {[%emt 0:00:30]} Nf6 {[%emt 0:06:30]} 4. d4 {[%emt 0:00:30]} exd4 {[%emt 0:00:30]} 5. e5 {[%emt 0:00:30]} Ne4 {[%emt 0:00:30]} 6. Qe2 {[%emt 0:00:30]} f5 {[%emt 0:26:30]} 7. exf6 {[%emt 0:00:30]} d5 {[%emt 0:00:30]} 8. Nxd4 {[%emt 0:18:30]} Nxd4 {[%emt 0:02:30]} 9. cxd4 {[%emt 0:00:30]} Qxf6 {[%emt 0:19:30]} 10. f3 {[%emt 0:02:30]} Bb4+ {[%emt 0:00:30]} 11. Bd2 {[%emt 0:01:30]} O-O {[%emt 0:06:30]} 12. Bxb4 {[%emt 0:04:30]} Re8 {[%emt 0:00:30]} 13. fxe4 {[%emt 0:08:30]} Rxe4 {[%emt 0:00:30]} 14. Qxe4 {[%emt 0:04:30]} dxe4 {[%emt 0:00:30]} 15. Bc4+ {[%emt 0:00:30]} Be6 {[%emt 0:00:30]} 16. Bxe6+ {[%emt 0:00:30]} Qxe6 {[%emt 0:00:30]} 17. O-O {[%emt 0:08:30]} e3 {[%emt 0:01:30]} 18. Re1 {[%emt 0:03:30]} Qf6 {[%emt 0:03:30]} 19. Bc3 {[%emt 0:13:30]} Qf2+ {[%emt 0:00:30]} 20. Kh1 {[%emt 0:00:30]} Rf8 {[%emt 0:01:30]} 21. Na3 {[%emt 0:11:01]} e2 {[%emt 0:04:30]} 22. Rg1 {[%emt 0:01:32]} Rf5 {[%emt 0:03:14]} 23. Nc2 {[%emt 0:08:38]} Rh5 {[%emt 0:04:12]} 24. Rge1 {[%emt 0:02:51]} Qf4 {[%emt 0:02:19]} 25. Kg1 {[%emt 0:04:50]} Rxh2 {[%emt 0:01:58]} 26. Rxe2 {[%emt 0:01:37]} Qh4 {[%emt 0:00:30]} 27. Re8+ {[%emt 0:00:30]} Kf7 {[%emt 0:00:00]} 28. Kf1 {[%emt 0:00:07]} Kxe8 {[%emt 0:00:20]} 29. Re1+ {[%emt 0:00:24]} Kf7 {[%emt 0:01:04]} 30. Re3 {[%emt 0:00:09]} Qg4 {[%emt 0:00:42]} 31. Ne1 {[%emt 0:00:22]} Rh1+ {[%emt 0:03:09]} 32. Kf2 {[%emt 0:00:07]} Qh4+ {[%emt 0:00:06]} 33. Ke2 {[%emt 0:01:45]} Rxe1+ {[%emt 0:04:09]} 34. Bxe1 {[%emt 0:00:30]} Qxd4 {[%emt 0:00:00]} 35. Bc3 {[%emt 0:00:29]} Qc4+ {[%emt 0:00:19]} 36. Kf2 {[%emt 0:00:05]} Qxa2 {[%emt 0:00:04]} 37. Rf3+ {[%emt 0:00:15]} Ke6 {[%emt 0:01:20]} 38. Bxg7 {[%emt 0:00:07]} Qb1 {[%emt 0:00:17]} 39. g4 {[%emt 0:00:44]} Qg6 {[%emt 0:00:36]} 40. Re3+ {[%emt 0:01:15]} Kd7 {[%emt 0:00:14]} 41. Be5 {[%emt 0:00:26]} Qxg4 {[%emt 0:00:24]} 42. Rd3+ {[%emt 0:00:15]} Kc8 {[%emt 0:00:36]} 0-1

[Event "Istanbul Open 2019"]
[Site "Istanbul"]
[Date "2019.08.27"]
[Round "2.11"]
[White "Annaberdiyev, Babageldi"]
[Black "Yasin, Hur"]
[Result "0-1"]
[ECO "A30"]
[WhiteElo "2242"]
[BlackElo "1906"]
[Annotator "ChessBase"]
[PlyCount "98"]
[EventDate "2019.08.26"]
[EventType "swiss"]
[EventCountry "TUR"]
[SourceTitle "playchess.com"]
[Source "ChessBase"]
[SourceQuality "1"]
[TimeControl "5400+30"]

1. Nf3 {[%emt 0:00:30]} Nf6 {[%emt 0:02:30]} 2. g3 {[%emt 0:00:00]} b6 {[%emt 0:00:30]} 3. Bg2 {[%emt 0:00:00]} Bb7 {[%emt 0:00:30]} 4. O-O {[%emt 0:00:30]} c5 {[%emt 0:00:30]} 5. c4 {[%emt 0:03:30]} g6 {[%emt 0:01:30]} 6. b3 {[%emt 0:02:30]} Bg7 {[%emt 0:00:30]} 7. Bb2 {[%emt 0:00:00]} O-O {[%emt 0:00:00]} 8. d4 {[%emt 0:01:00]} cxd4 {[%emt 0:00:00]} 9. Qxd4 {[%emt 0:01:30]} d6 {[%emt 0:01:30]} 10. Qh4 {[%emt 0:01:30]} Nbd7 {[%emt 0:01:30]} 11. Nc3 {[%emt 0:03:30]} Rc8 {[%emt 0:04:30]} 12. Rad1 {[%emt 0:07:30]} Rc5 {[%emt 0:01:30]} 13. Qf4 {[%emt 0:07:30]} Qa8 {[%emt 0:01:30]} 14. Qe3 {[%emt 0:10:30]} Re8 {[%emt 0:05:30]} 15. h3 {[%emt 0:00:00]} Ne5 {[%emt 0:01:30]} 16. Na4 {[%emt 0:01:00]} Nxf3+ {[%emt 0:03:30]} 17. Bxf3 {[%emt 0:03:30]} Bxf3 {[%emt 0:01:30]} 18. Qxf3 {[%emt 0:01:30]} Qxf3 {[%emt 0:03:30]} 19. exf3 {[%emt 0:00:30]} Rc6 {[%emt 0:00:30]} 20. Rfe1 {[%emt 0:00:30]} Kf8 {[%emt 0:00:30]} 21. Bd4 {[%emt 0:00:30]} Rb8 {[%emt 0:00:30]} 22. Nc3 {[%emt 0:00:30]} Ne8 {[%emt 0:00:30]} 23. Nd5 {[%emt 0:00:30]} Rb7 {[%emt 0:08:30]} 24. a4 {[%emt 0:10:30]} Bxd4 {[%emt 0:05:30]} 25. Rxd4 {[%emt 0:00:30]} Rc5 {[%emt 0:00:30]} 26. Rh4 {[%emt 0:00:30]} h5 {[%emt 0:00:30]} 27. Rhe4 {[%emt 0:00:30]} e6 {[%emt 0:00:30]} 28. Nf4 {[%emt 0:04:30]} Nc7 {[%emt 0:06:30]} 29. b4 {[%emt 0:04:30]} Rf5 {[%emt 0:07:30]} 30. g4 {[%emt 0:01:30]} hxg4 {[%emt 0:02:30]} 31. fxg4 {[%emt 0:00:00]} Rf6 {[%emt 0:00:00]} 32. Rd1 {[%emt 0:02:00]} Ne8 {[%emt 0:03:00]} 33. Kg2 {[%emt 0:01:30]} a6 {[%emt 0:00:30]} 34. Ne2 {[%emt 0:00:30]} g5 {[%emt 0:00:30]} 35. Nc3 {[%emt 0:00:30]} Rc7 {[%emt 0:03:30]} 36. Ne2 {[%emt 0:02:30]} Rg6 {[%emt 0:04:30]} 37. f4 {[%emt 0:02:30]} Nf6 {[%emt 0:02:30]} 38. Red4 {[%emt 0:00:00]} d5 {[%emt 0:00:30]} 39. f5 {[%emt 0:01:00]} Rh6 {[%emt 0:02:30]} 40. fxe6 {[%emt 0:06:30]} fxe6 {[%emt 0:00:30]} 41. cxd5 {[%emt 0:02:30]} Nxd5 {[%emt 0:00:30]} 42. Rf1+ {[%emt 0:00:30]} Ke7 {[%emt 0:01:30]} 43. Re4 {[%emt 0:01:01]} Rc2 {[%emt 0:00:30]} 44. Rf2 {[%emt 0:01:44]} Rf6 {[%emt 0:03:30]} 45. b5 {[%emt 0:10:17]} axb5 {[%emt 0:01:30]} 46. axb5 {[%emt 0:00:01]} Nc3 {[%emt 0:00:30]} 47. Re5 {[%emt 0:00:41]} Rxf2+ {[%emt 0:00:30]} 48. Kxf2 {[%emt 0:00:01]} Kf6 {[%emt 0:00:30]} 49. Re3 {[%emt 0:00:04]} Nd1+ {[%emt 0:00:30]} 0-1

[Event "Istanbul Open 2019"]
[Site "Istanbul"]
[Date "2019.08.27"]
[Round "2.12"]
[White "Aydin, Kaan Ayhan"]
[Black "Eren, Ataberk"]
[Result "0-1"]
[ECO "C13"]
[WhiteElo "1890"]
[BlackElo "2254"]
[Annotator "NA"]
[PlyCount "74"]
[EventDate "2019.08.26"]
[EventType "swiss"]
[EventCountry "TUR"]
[SourceTitle "playchess.com"]
[Source "ChessBase"]
[SourceQuality "1"]
[TimeControl "5400+30"]

1. e4 {[%emt 0:00:30]} e6 {[%emt 0:02:30]} 2. d4 {[%emt 0:00:00]} d5 {[%emt 0:00:00]} 3. Nc3 {[%emt 0:00:00]} Nf6 {[%emt 0:00:00]} 4. Bg5 {[%emt 0:00:00]} dxe4 {[%emt 0:00:30]} 5. Nxe4 {[%emt 0:00:00]} Be7 {[%emt 0:00:30]} 6. Bxf6 {[%emt 0:01:30]} gxf6 {[%emt 0:00:30]} 7. Nf3 {[%emt 0:01:30]} b6 {[%emt 0:00:00]} 8. Bb5+ {[%emt 0:00:30]} c6 {[%emt 0:00:00]} 9. Bc4 {[%emt 0:02:30]} Bb7 {[%emt 0:00:30]} 10. Qe2 {[%emt 0:00:00]} Nd7 {[%emt 0:00:00]} 11. O-O-O {[%emt 0:01:00]} Qc7 {[%emt 0:01:00]} 12. Kb1 {[%emt 0:02:30] C13: French: Classical System: 4 Bg5 Be7, Alekhine-Chatard Attack} ({Predecessor:} 12. Rhe1 O-O-O 13. g3 Kb8 14. Kb1 {0-1 (41) Rotstein,J-Serebrisky,A Kiev 1956} Nf8 15. Ba6 Ba8 16. Bd3 Ng6 17. h4 f5 18. Neg5 Bf6 19. Bc4 h6 20. Nxf7 Qxf7 21. Bxe6 {½-½ (44) Brenjo,S (2491)-Stojanovic,M (2576) Vrsac 2007}) 12... O-O-O {[%emt 0:00:00]} 13. Rhe1 {[%emt 0:00:30]} Rhg8 $146 {[%emt 0:00:00]} (13... Kb8) 14. g3 {[%emt 0:00:00]} Kb8 {[%emt 0:00:30]} 15. a3 {[%emt 0:06:00]} f5 {[%emt 0:03:30]} 16. Nc3 {[%emt 0:00:30]} Bf6 {[%emt 0:00:00]} (16... b5 $5 {[%cal Rb5c4]} 17. Bb3 a6 $11) 17. Ne5 {[%emt 0:03:30]} Nxe5 {[%emt 0:06:00]} 18. dxe5 {[%emt 0:00:00]} Rxd1+ {[%emt 0:00:00]} 19. Nxd1 {[%emt 0:00:00]} Bg7 {[%emt 0:02:00]} 20. f4 {[%emt 0:00:30]} Rd8 {[%emt 0:00:30]} 21. Nc3 {[%emt 0:00:30]} b5 {[%emt 0:00:00]} 22. Bd3 $11 {[%emt 0:03:30]} Bf8 {[%emt 0:02:00]} 23. g4 {[%emt 0:12:30]} b4 {[%emt 0:16:30]} 24. axb4 {[%emt 0:03:30]} Bxb4 {[%emt 0:00:30]} 25. gxf5 {[%emt 0:00:30]} Qa5 {[%emt 0:00:30]} 26. fxe6 {[%emt 0:01:30]} fxe6 {[%emt 0:00:30]} 27. Bc4 {[%emt 0:10:30]} Bxc3 {[%emt 0:00:30]} 28. bxc3 {[%emt 0:00:30]} Qxc3 {[%emt 0:00:00]} 29. Bb3 {[%emt 0:00:00]} Rd4 {[%emt 0:16:00]} 30. Rg1 {[%emt 0:16:00]} a5 {[%emt 0:00:30]} 31. Qf2 {[%emt 0:08:30]} a4 {[%emt 0:07:30]} 32. Bxa4 {[%emt 0:02:30]} Rxa4 {[%emt 0:00:30]} 33. Rg8+ {[%emt 0:00:30]} Kc7 {[%emt 0:00:30]} 34. Rg7+ {[%emt 0:00:30]} Kc8 {[%emt 0:00:30]} 35. Rg8+ {[%emt 0:00:30]} Kd7 {[%emt 0:00:30]} 36. Rg7+ {[%emt 0:00:30]} Ke8 {[%emt 0:00:30]} 37. Re7+ {[%emt 0:00:30]} Kf8 {[%emt 0:00:00]} 0-1

[Event "Istanbul Open 2019"]
[Site "Istanbul"]
[Date "2019.08.27"]
[Round "2.13"]
[White "Yaran, Siar"]
[Black "Gundogan, Sinem Cagla"]
[Result "1-0"]
[ECO "C44"]
[WhiteElo "2209"]
[BlackElo "1820"]
[Annotator "ChessBase"]
[PlyCount "55"]
[EventDate "2019.08.26"]
[EventType "swiss"]
[EventCountry "TUR"]
[SourceTitle "playchess.com"]
[Source "ChessBase"]
[SourceQuality "1"]
[TimeControl "5400+30"]

1. e4 {[%emt 0:00:30]} e5 {[%emt 0:00:30]} 2. Nf3 {[%emt 0:00:00]} Nc6 {[%emt 0:00:00]} 3. c3 {[%emt 0:02:00]} Nf6 {[%emt 0:12:00]} 4. d4 {[%emt 0:00:30]} exd4 {[%emt 0:00:00]} 5. e5 {[%emt 0:00:00]} Nd5 {[%emt 0:03:00]} 6. Bc4 {[%emt 0:11:00]} Nb6 {[%emt 0:02:30]} 7. Bb3 {[%emt 0:00:30]} Be7 {[%emt 0:03:30]} 8. O-O {[%emt 0:01:30]} O-O {[%emt 0:07:30]} 9. Bf4 {[%emt 0:10:30]} d5 {[%emt 0:02:30]} 10. Nxd4 {[%emt 0:00:30]} Nxd4 {[%emt 0:03:30]} 11. cxd4 {[%emt 0:00:30]} Bf5 {[%emt 0:00:30]} 12. Nc3 {[%emt 0:00:00]} c6 {[%emt 0:02:30]} 13. Qe2 {[%emt 0:07:00]} Re8 {[%emt 0:01:30]} 14. Nd1 {[%emt 0:02:30]} f6 {[%emt 0:13:30]} 15. Ne3 {[%emt 0:00:30]} Be6 {[%emt 0:00:30]} 16. Bc2 {[%emt 0:01:30]} fxe5 {[%emt 0:02:30]} 17. Bxe5 {[%emt 0:00:30]} Nd7 {[%emt 0:01:30]} 18. Qh5 {[%emt 0:00:30]} Nf8 {[%emt 0:00:30]} 19. f4 {[%emt 0:03:30]} Bf7 {[%emt 0:02:30]} 20. Qg4 {[%emt 0:19:30]} Bf6 {[%emt 0:00:00]} 21. Rf3 {[%emt 0:00:30]} Ng6 {[%emt 0:20:00]} 22. Rh3 {[%emt 0:00:30]} c5 {[%emt 0:00:30]} 23. Qh5 {[%emt 0:01:30]} cxd4 {[%emt 0:05:06]} 24. Qxh7+ {[%emt 0:01:30]} Kf8 {[%emt 0:00:11]} 25. Ng4 {[%emt 0:08:30]} Bxe5 {[%emt 0:12:31]} 26. fxe5 {[%emt 0:00:30]} Qg5 {[%emt 0:00:34]} 27. Rf1 {[%emt 0:01:30]} Nf4 {[%emt 0:01:45]} 28. Rhf3 {[%emt 0:01:30]} 1-0